[Event "Titled Tuesday Blitz August 08 Early 2023"]
[White "MarijaKuznecova"]
[Black "Parpiev, Isaak"]
[BlackFideId "34281576"]
[WhiteElo "2352"]
[BlackElo "2529"]
[Result "0-1"]
[Round "8"]
[TimeControl "180+1"]
[Date "2023.08.08"]
[WhiteClock "0:00:11"]
[BlackClock "0:01:04"]
[Board "137"]

1. e4 {[%clk 0:03:00]}  c6 {[%clk 0:02:56]} 2. d4 {[%clk 0:02:59]}  d5 {[%clk 0:02:55]} 3. e5 {[%clk 0:03:00]}  Bf5 {[%clk 0:02:41]} 4. Nf3 {[%clk 0:03:00]}  e6 {[%clk 0:02:40]} 5. Be2 {[%clk 0:02:58]}  Ne7 {[%clk 0:02:40]} 6. O-O {[%clk 0:02:57]}  c5 {[%clk 0:02:40]} 7. c4 {[%clk 0:02:51]}  dxc4 {[%clk 0:02:34]} 8. Bxc4 {[%clk 0:02:50]}  Bg4 {[%clk 0:02:08]} 9. h3 {[%clk 0:02:07]}  Bh5 {[%clk 0:02:02]} 10. g4 {[%clk 0:02:02]}  Bg6 {[%clk 0:02:01]} 11. Nc3 {[%clk 0:01:50]}  cxd4 {[%clk 0:01:57]} 12. Nxd4 {[%clk 0:01:51]}  Nec6 {[%clk 0:01:58]} 13. Nxc6 {[%clk 0:01:47]}  Nxc6 {[%clk 0:01:58]} 14. Bf4 {[%clk 0:01:41]}  Bc5 {[%clk 0:01:48]} 15. Nb5 {[%clk 0:01:37]}  O-O {[%clk 0:01:34]} 16. Nd6 {[%clk 0:01:27]}  Qb6 {[%clk 0:01:25]} 17. b3 {[%clk 0:00:45]}  Bd4 {[%clk 0:01:22]} 18. Rc1 {[%clk 0:00:39]}  Bxe5 {[%clk 0:01:22]} 19. Be3 {[%clk 0:00:39]}  Bd4 {[%clk 0:01:19]} 20. Bxd4 {[%clk 0:00:33]}  Nxd4 {[%clk 0:01:20]} 21. Nxb7 {[%clk 0:00:31]}  Be4 {[%clk 0:01:08]} 22. Nc5 {[%clk 0:00:10]}  Qxc5 {[%clk 0:01:04]} 23. Bxe6 {[%clk 0:00:10]}  Qxc1 {[%clk 0:01:02]} 24. Qxc1 {[%clk 0:00:11]}  Ne2+ {[%clk 0:01:03]} 25. Kh2 {[%clk 0:00:12]}  Nxc1 {[%clk 0:01:04]} 26. Rxc1 {[%clk 0:00:11]}  fxe6 {[%clk 0:01:04]} 0-1


[Site "https://www.chess.com"]

[Event "Titled Tuesday Blitz August 08 Early 2023"]
[White "Kanyamarala, Tarun"]
[Black "dr_tatiana"]
[WhiteFideId "45004714"]
[WhiteElo "2511"]
[BlackElo "2352"]
[Result "0-1"]
[Round "8"]
[TimeControl "180+1"]
[Date "2023.08.08"]
[WhiteClock "0:01:25"]
[BlackClock "0:01:03"]
[Board "138"]

1. e4 {[%clk 0:03:00]}  d5 {[%clk 0:02:59]} 2. exd5 {[%clk 0:03:00]}  Qxd5 {[%clk 0:03:00]} 3. Nc3 {[%clk 0:03:00]}  Qd6 {[%clk 0:03:00]} 4. d4 {[%clk 0:03:00]}  Nf6 {[%clk 0:03:00]} 5. Nf3 {[%clk 0:03:00]}  a6 {[%clk 0:03:01]} 6. Bc4 {[%clk 0:02:52]}  Nc6 {[%clk 0:02:54]} 7. h3 {[%clk 0:02:49]}  Bf5 {[%clk 0:02:51]} 8. O-O {[%clk 0:02:46]}  O-O-O {[%clk 0:02:50]} 9. Be3 {[%clk 0:02:28]}  e6 {[%clk 0:02:21]} 10. a3 {[%clk 0:02:26]}  Nd5 {[%clk 0:02:21]} 11. Nxd5 {[%clk 0:02:22]}  exd5 {[%clk 0:02:22]} 12. Be2 {[%clk 0:02:20]}  Be7 {[%clk 0:02:16]} 13. Qd2 {[%clk 0:02:19]}  h6 {[%clk 0:02:03]} 14. Bf4 {[%clk 0:02:18]}  Qg6 {[%clk 0:02:00]} 15. Kh2 {[%clk 0:02:18]}  Bd6 {[%clk 0:01:59]} 16. Rac1 {[%clk 0:02:10]}  Rhe8 {[%clk 0:01:54]} 17. Rfe1 {[%clk 0:02:09]}  Re4 {[%clk 0:01:47]} 18. Bxd6 {[%clk 0:02:07]}  Qxd6+ {[%clk 0:01:47]} 19. Kg1 {[%clk 0:02:06]}  g5 {[%clk 0:01:47]} 20. Bd3 {[%clk 0:02:04]}  g4 {[%clk 0:01:21]} 21. Bxe4 {[%clk 0:01:47]}  dxe4 {[%clk 0:01:21]} 22. hxg4 {[%clk 0:01:47]}  exf3 {[%clk 0:01:18]} 23. gxf5 {[%clk 0:01:46]}  Nxd4 {[%clk 0:01:12]} 24. Qe3 {[%clk 0:01:28]}  Rg8 {[%clk 0:01:06]} 25. g3 {[%clk 0:01:25]}  Rxg3+ {[%clk 0:01:03]} 0-1


[Site "https://www.chess.com"]

[Event "Titled Tuesday Blitz August 08 Early 2023"]
[White "rikchessmx"]
[Black "Womacka, Mathias"]
[BlackFideId "4611390"]
[WhiteElo "2339"]
[BlackElo "2508"]
[Result "1-0"]
[Round "8"]
[TimeControl "180+1"]
[Date "2023.08.08"]
[WhiteClock "0:00:12"]
[BlackClock "0:00:13"]
[Board "139"]

1. e4 {[%clk 0:03:00]}  c5 {[%clk 0:02:58]} 2. Nf3 {[%clk 0:02:59]}  d6 {[%clk 0:02:57]} 3. d4 {[%clk 0:02:59]}  cxd4 {[%clk 0:02:58]} 4. Nxd4 {[%clk 0:03:00]}  Nf6 {[%clk 0:02:59]} 5. Nc3 {[%clk 0:03:00]}  a6 {[%clk 0:02:59]} 6. f4 {[%clk 0:02:56]}  e5 {[%clk 0:02:59]} 7. Nf3 {[%clk 0:02:56]}  Nbd7 {[%clk 0:02:59]} 8. Bd3 {[%clk 0:02:56]}  Be7 {[%clk 0:02:59]} 9. O-O {[%clk 0:02:56]}  b5 {[%clk 0:02:59]} 10. a3 {[%clk 0:02:56]}  O-O {[%clk 0:02:58]} 11. Kh1 {[%clk 0:02:56]}  Bb7 {[%clk 0:02:57]} 12. Qe1 {[%clk 0:02:56]}  Re8 {[%clk 0:02:55]} 13. fxe5 {[%clk 0:02:56]}  Nxe5 {[%clk 0:02:54]} 14. Nd4 {[%clk 0:02:56]}  Rc8 {[%clk 0:02:48]} 15. Nf5 {[%clk 0:02:56]}  d5 {[%clk 0:02:21]} 16. Qg3 {[%clk 0:02:47]}  Ng6 {[%clk 0:02:15]} 17. exd5 {[%clk 0:02:39]}  Nxd5 {[%clk 0:02:13]} 18. Ne4 {[%clk 0:02:33]}  Bf8 {[%clk 0:02:04]} 19. Nfd6 {[%clk 0:02:27]}  Qd7 {[%clk 0:01:37]} 20. Nxc8 {[%clk 0:02:22]}  Rxc8 {[%clk 0:01:31]} 21. Ng5 {[%clk 0:02:20]}  Nf6 {[%clk 0:01:27]} 22. Bf5 {[%clk 0:02:10]}  Qc6 {[%clk 0:01:20]} 23. Bxc8 {[%clk 0:02:09]}  Qxc8 {[%clk 0:01:20]} 24. c3 {[%clk 0:02:07]}  Qc6 {[%clk 0:01:18]} 25. Nf3 {[%clk 0:02:05]}  Ne4 {[%clk 0:01:13]} 26. Qe1 {[%clk 0:02:03]}  h6 {[%clk 0:01:05]} 27. Be3 {[%clk 0:02:02]}  Bd6 {[%clk 0:01:04]} 28. Rd1 {[%clk 0:02:00]}  Qc7 {[%clk 0:01:03]} 29. Bg1 {[%clk 0:01:42]}  Nf4 {[%clk 0:00:56]} 30. Rd4 {[%clk 0:01:31]}  Ng5 {[%clk 0:00:50]} 31. Qd2 {[%clk 0:01:14]}  Be5 {[%clk 0:00:39]} 32. Rd7 {[%clk 0:00:59]}  Nxf3 {[%clk 0:00:34]} 33. gxf3 {[%clk 0:00:55]}  Qc6 {[%clk 0:00:34]} 34. Rd8+ {[%clk 0:00:41]}  Kh7 {[%clk 0:00:33]} 35. Be3 {[%clk 0:00:41]}  Ne6 {[%clk 0:00:24]} 36. Qd3+ {[%clk 0:00:32]}  g6 {[%clk 0:00:20]} 37. Rd7 {[%clk 0:00:32]}  Kg7 {[%clk 0:00:18]} 38. Kg1 {[%clk 0:00:21]}  Ng5 {[%clk 0:00:17]} 39. Bxg5 {[%clk 0:00:20]}  hxg5 {[%clk 0:00:18]} 40. Re1 {[%clk 0:00:15]}  Bf6 {[%clk 0:00:16]} 41. Rd6 {[%clk 0:00:11]}  Qc5+ {[%clk 0:00:16]} 42. Kg2 {[%clk 0:00:10]}  Be5 {[%clk 0:00:12]} 43. Rd4 {[%clk 0:00:08]}  Bxd4 {[%clk 0:00:12]} 44. Qxd4+ {[%clk 0:00:08]}  Qxd4 {[%clk 0:00:12]} 45. cxd4 {[%clk 0:00:09]}  f5 {[%clk 0:00:08]} 46. Kf2 {[%clk 0:00:09]}  Kf6 {[%clk 0:00:08]} 47. Re5 {[%clk 0:00:09]}  Bc6 {[%clk 0:00:08]} 48. Ke3 {[%clk 0:00:09]}  f4+ {[%clk 0:00:05]} 49. Kf2 {[%clk 0:00:08]}  Bb7 {[%clk 0:00:05]} 50. Rc5 {[%clk 0:00:08]}  Ke6 {[%clk 0:00:04]} 51. Rc7 {[%clk 0:00:08]}  Bd5 {[%clk 0:00:04]} 52. Ra7 {[%clk 0:00:08]}  Bc4 {[%clk 0:00:03]} 53. Rxa6+ {[%clk 0:00:08]}  Kd5 {[%clk 0:00:03]} 54. Rxg6 {[%clk 0:00:08]}  Kxd4 {[%clk 0:00:03]} 55. Rxg5 {[%clk 0:00:09]}  Bd3 {[%clk 0:00:03]} 56. Rg4 {[%clk 0:00:08]}  Ke5 {[%clk 0:00:03]} 57. h4 {[%clk 0:00:08]}  Bf5 {[%clk 0:00:02]} 58. Rg5 {[%clk 0:00:08]}  Kf6 {[%clk 0:00:03]} 59. Ke2 {[%clk 0:00:06]}  Bb1 {[%clk 0:00:01]} 60. Rxb5 {[%clk 0:00:04]}  Ba2 {[%clk 0:00:02]} 61. Rb4 {[%clk 0:00:03]}  Bf7 {[%clk 0:00:01]} 62. Rxf4+ {[%clk 0:00:02]}  Ke6 {[%clk 0:00:02]} 63. Rxf7 {[%clk 0:00:02]}  Kxf7 {[%clk 0:00:03]} 64. Ke3 {[%clk 0:00:03]}  Ke6 {[%clk 0:00:03]} 65. Kf4 {[%clk 0:00:03]}  Kd6 {[%clk 0:00:04]} 66. Kf5 {[%clk 0:00:03]}  Ke7 {[%clk 0:00:04]} 67. Kg6 {[%clk 0:00:04]}  Ke6 {[%clk 0:00:04]} 68. a4 {[%clk 0:00:04]}  Ke5 {[%clk 0:00:05]} 69. a5 {[%clk 0:00:05]}  Kf4 {[%clk 0:00:05]} 70. a6 {[%clk 0:00:05]}  Kxf3 {[%clk 0:00:06]} 71. a7 {[%clk 0:00:06]}  Ke3 {[%clk 0:00:07]} 72. a8=Q {[%clk 0:00:06]}  Kd2 {[%clk 0:00:08]} 73. Qd5+ {[%clk 0:00:06]}  Kc2 {[%clk 0:00:09]} 74. Kf5 {[%clk 0:00:06]}  Kb1 {[%clk 0:00:10]} 75. Qe4+ {[%clk 0:00:07]}  Ka1 {[%clk 0:00:11]} 76. b4 {[%clk 0:00:07]}  Ka2 {[%clk 0:00:12]} 77. b5 {[%clk 0:00:07]}  Kb3 {[%clk 0:00:12]} 78. b6 {[%clk 0:00:08]}  Kc3 {[%clk 0:00:13]} 79. b7 {[%clk 0:00:09]}  Kd2 {[%clk 0:00:14]} 80. b8=Q {[%clk 0:00:10]}  Kc3 {[%clk 0:00:15]} 81. Qd6 {[%clk 0:00:10]}  Kb3 {[%clk 0:00:14]} 82. Qb7+ {[%clk 0:00:10]}  Kc3 {[%clk 0:00:14]} 83. Qbc6+ {[%clk 0:00:11]}  Kb3 {[%clk 0:00:14]} 84. Qb8+ {[%clk 0:00:12]}  Ka3 {[%clk 0:00:13]} 85. Qca8# {[%clk 0:00:12]} 1-0


[Site "https://www.chess.com"]

[Event "Titled Tuesday Blitz August 08 Early 2023"]
[White "Dong Khanh Linh"]
[Black "Nemec, Jachym"]
[WhiteFideId "12403040"]
[BlackFideId "23716525"]
[WhiteElo "2334"]
[BlackElo "2504"]
[Result "0-1"]
[Round "8"]
[TimeControl "180+1"]
[Date "2023.08.08"]
[WhiteClock "0:00:07"]
[BlackClock "0:00:19"]
[Board "142"]

1. d4 {[%clk 0:03:00]}  Nf6 {[%clk 0:02:59]} 2. Nf3 {[%clk 0:03:00]}  e6 {[%clk 0:02:59]} 3. Nbd2 {[%clk 0:03:01]}  c5 {[%clk 0:02:57]} 4. e3 {[%clk 0:03:00]}  b6 {[%clk 0:02:57]} 5. c3 {[%clk 0:02:56]}  Be7 {[%clk 0:02:53]} 6. Bd3 {[%clk 0:02:55]}  Ba6 {[%clk 0:02:53]} 7. Bxa6 {[%clk 0:02:11]}  Nxa6 {[%clk 0:02:53]} 8. O-O {[%clk 0:02:12]}  O-O {[%clk 0:02:51]} 9. e4 {[%clk 0:02:12]}  d6 {[%clk 0:02:51]} 10. Qe2 {[%clk 0:02:11]}  Nc7 {[%clk 0:02:48]} 11. Re1 {[%clk 0:02:04]}  cxd4 {[%clk 0:02:46]} 12. Nxd4 {[%clk 0:02:02]}  Qd7 {[%clk 0:02:43]} 13. N2f3 {[%clk 0:02:01]}  e5 {[%clk 0:02:39]} 14. Nf5 {[%clk 0:01:59]}  Ne6 {[%clk 0:02:36]} 15. Ng5 {[%clk 0:01:53]}  h6 {[%clk 0:02:31]} 16. Nxe6 {[%clk 0:01:50]}  fxe6 {[%clk 0:02:30]} 17. Ng3 {[%clk 0:01:49]}  Qc6 {[%clk 0:02:13]} 18. Nh5 {[%clk 0:01:42]}  Nxh5 {[%clk 0:02:11]} 19. Qxh5 {[%clk 0:01:43]}  Rf6 {[%clk 0:02:08]} 20. f3 {[%clk 0:01:32]}  Raf8 {[%clk 0:02:08]} 21. Be3 {[%clk 0:01:31]}  Bd8 {[%clk 0:02:07]} 22. Rad1 {[%clk 0:01:28]}  a5 {[%clk 0:02:07]} 23. Rd2 {[%clk 0:01:26]}  b5 {[%clk 0:01:55]} 24. Red1 {[%clk 0:01:23]}  Bc7 {[%clk 0:01:55]} 25. Qh4 {[%clk 0:01:10]}  a4 {[%clk 0:01:50]} 26. Qf2 {[%clk 0:01:08]}  Kh7 {[%clk 0:01:48]} 27. Rd3 {[%clk 0:01:03]}  Ra8 {[%clk 0:01:46]} 28. Qh4 {[%clk 0:00:56]}  Rg6 {[%clk 0:01:40]} 29. Qf2 {[%clk 0:00:47]}  Rf8 {[%clk 0:01:38]} 30. b3 {[%clk 0:00:46]}  Ra8 {[%clk 0:01:37]} 31. Qc2 {[%clk 0:00:43]}  axb3 {[%clk 0:01:35]} 32. axb3 {[%clk 0:00:43]}  Rf6 {[%clk 0:01:22]} 33. Bf2 {[%clk 0:00:37]}  Rff8 {[%clk 0:01:20]} 34. h4 {[%clk 0:00:35]}  Ra3 {[%clk 0:01:18]} 35. h5 {[%clk 0:00:32]}  Rfa8 {[%clk 0:01:14]} 36. c4 {[%clk 0:00:31]}  Ra2 {[%clk 0:01:13]} 37. Qc1 {[%clk 0:00:31]}  b4 {[%clk 0:00:40]} 38. Be1 {[%clk 0:00:20]}  Bb6+ {[%clk 0:00:40]} 39. Kh1 {[%clk 0:00:20]}  Bc5 {[%clk 0:00:40]} 40. Bd2 {[%clk 0:00:18]}  Qe8 {[%clk 0:00:40]} 41. g4 {[%clk 0:00:16]}  Qf7 {[%clk 0:00:40]} 42. Rf1 {[%clk 0:00:16]}  Qf6 {[%clk 0:00:36]} 43. Qe1 {[%clk 0:00:15]}  Rf8 {[%clk 0:00:32]} 44. Be3 {[%clk 0:00:13]}  Bxe3 {[%clk 0:00:23]} 45. Rxe3 {[%clk 0:00:14]}  Qf4 {[%clk 0:00:24]} 46. Re2 {[%clk 0:00:14]}  Rfa8 {[%clk 0:00:24]} 47. Rxa2 {[%clk 0:00:11]}  Rxa2 {[%clk 0:00:25]} 48. Rf2 {[%clk 0:00:11]}  Ra3 {[%clk 0:00:18]} 49. Qxb4 {[%clk 0:00:09]}  Ra1+ {[%clk 0:00:18]} 50. Kg2 {[%clk 0:00:10]}  Qc1 {[%clk 0:00:19]} 51. f4 {[%clk 0:00:09]}  Qh1+ {[%clk 0:00:18]} 52. Kg3 {[%clk 0:00:07]}  Rg1+ {[%clk 0:00:19]} 0-1


[Site "https://www.chess.com"]

[Event "Titled Tuesday Blitz August 08 Early 2023"]
[White "Willy, Stephen"]
[Black "Ziatdinov, Raset"]
[WhiteFideId "30981468"]
[BlackFideId "2015323"]
[WhiteElo "2503"]
[BlackElo "2333"]
[Result "1-0"]
[Round "8"]
[TimeControl "180+1"]
[Date "2023.08.08"]
[WhiteClock "0:02:27"]
[BlackClock "0:02:05"]
[Board "143"]

1. e4 {[%clk 0:03:00]}  c5 {[%clk 0:02:55]} 2. c3 {[%clk 0:02:54]}  Nf6 {[%clk 0:02:54]} 3. e5 {[%clk 0:02:54]}  Nd5 {[%clk 0:02:54]} 4. Nf3 {[%clk 0:02:54]}  Nc6 {[%clk 0:02:54]} 5. Bc4 {[%clk 0:02:54]}  Nb6 {[%clk 0:02:54]} 6. Bb3 {[%clk 0:02:54]}  d6 {[%clk 0:02:52]} 7. exd6 {[%clk 0:02:54]}  e6 {[%clk 0:02:52]} 8. d4 {[%clk 0:02:52]}  cxd4 {[%clk 0:02:51]} 9. Nxd4 {[%clk 0:02:50]}  Nxd4 {[%clk 0:02:51]} 10. Qxd4 {[%clk 0:02:49]}  Qxd6 {[%clk 0:02:52]} 11. Be3 {[%clk 0:02:48]}  Qxd4 {[%clk 0:02:26]} 12. Bxd4 {[%clk 0:02:49]}  f6 {[%clk 0:02:26]} 13. O-O {[%clk 0:02:47]}  Bd6 {[%clk 0:02:22]} 14. Re1 {[%clk 0:02:46]}  Kf7 {[%clk 0:02:21]} 15. Nd2 {[%clk 0:02:44]}  Bd7 {[%clk 0:02:15]} 16. Ne4 {[%clk 0:02:41]}  Be7 {[%clk 0:02:14]} 17. Rad1 {[%clk 0:02:30]}  Rac8 {[%clk 0:02:05]} 18. Bxb6 {[%clk 0:02:27]} 1-0


[Site "https://www.chess.com"]

[Event "Titled Tuesday Blitz August 08 Early 2023"]
[White "Garakov, Mikhael"]
[Black "Valle Maytin, Luis Enrique"]
[WhiteFideId "4169034"]
[BlackFideId "3503666"]
[WhiteElo "2489"]
[BlackElo "2326"]
[Result "0-1"]
[Round "8"]
[TimeControl "180+1"]
[Date "2023.08.08"]
[WhiteClock "0:00:05"]
[BlackClock "0:00:09"]
[Board "144"]

1. e3 {[%clk 0:02:10]}  c6 {[%clk 0:03:00]} 2. d4 {[%clk 0:02:09]}  d5 {[%clk 0:03:01]} 3. c4 {[%clk 0:02:08]}  Nf6 {[%clk 0:02:59]} 4. Nc3 {[%clk 0:02:08]}  g6 {[%clk 0:02:59]} 5. Nf3 {[%clk 0:02:08]}  Bg7 {[%clk 0:02:59]} 6. Be2 {[%clk 0:02:05]}  O-O {[%clk 0:02:59]} 7. O-O {[%clk 0:02:04]}  Bf5 {[%clk 0:02:58]} 8. Ne5 {[%clk 0:01:55]}  Nbd7 {[%clk 0:02:57]} 9. f4 {[%clk 0:01:47]}  dxc4 {[%clk 0:02:57]} 10. Bxc4 {[%clk 0:01:44]}  Ne4 {[%clk 0:02:51]} 11. Qb3 {[%clk 0:01:15]}  Nxe5 {[%clk 0:02:49]} 12. fxe5 {[%clk 0:01:14]}  Nxc3 {[%clk 0:02:49]} 13. bxc3 {[%clk 0:01:13]}  b5 {[%clk 0:02:44]} 14. Bxf7+ {[%clk 0:01:10]}  Rxf7 {[%clk 0:02:44]} 15. e4 {[%clk 0:01:10]}  Kf8 {[%clk 0:02:20]} 16. exf5 {[%clk 0:01:06]}  Rxf5 {[%clk 0:02:19]} 17. Rxf5+ {[%clk 0:01:04]}  gxf5 {[%clk 0:02:15]} 18. Ba3 {[%clk 0:00:50]}  Qd5 {[%clk 0:02:14]} 19. Rf1 {[%clk 0:00:49]}  Qxb3 {[%clk 0:01:17]} 20. axb3 {[%clk 0:00:50]}  Kf7 {[%clk 0:01:11]} 21. Rxf5+ {[%clk 0:00:49]}  Kg6 {[%clk 0:01:11]} 22. Rf3 {[%clk 0:00:47]}  e6 {[%clk 0:01:11]} 23. g4 {[%clk 0:00:44]}  a5 {[%clk 0:01:09]} 24. Kg2 {[%clk 0:00:42]}  a4 {[%clk 0:01:09]} 25. bxa4 {[%clk 0:00:40]}  Rxa4 {[%clk 0:01:09]} 26. Be7 {[%clk 0:00:32]}  h5 {[%clk 0:00:51]} 27. Kg3 {[%clk 0:00:30]}  hxg4 {[%clk 0:00:50]} 28. Kxg4 {[%clk 0:00:30]}  Bxe5 {[%clk 0:00:48]} 29. h4 {[%clk 0:00:27]}  Bg7 {[%clk 0:00:46]} 30. h5+ {[%clk 0:00:26]}  Kh7 {[%clk 0:00:46]} 31. Re3 {[%clk 0:00:15]}  e5 {[%clk 0:00:40]} 32. h6 {[%clk 0:00:09]}  Kxh6 {[%clk 0:00:33]} 33. Kf5 {[%clk 0:00:07]}  Kh7 {[%clk 0:00:31]} 34. dxe5 {[%clk 0:00:07]}  Kg8 {[%clk 0:00:25]} 35. Bf6 {[%clk 0:00:07]}  Bxf6 {[%clk 0:00:22]} 36. Kxf6 {[%clk 0:00:07]}  Kf8 {[%clk 0:00:22]} 37. Ke6 {[%clk 0:00:06]}  Rc4 {[%clk 0:00:17]} 38. Kd7 {[%clk 0:00:05]}  b4 {[%clk 0:00:16]} 39. cxb4 {[%clk 0:00:05]}  Rxb4 {[%clk 0:00:15]} 40. Rf3+ {[%clk 0:00:05]}  Kg7 {[%clk 0:00:15]} 41. e6 {[%clk 0:00:05]}  Rd4+ {[%clk 0:00:15]} 42. Kxc6 {[%clk 0:00:05]}  Re4 {[%clk 0:00:13]} 43. Kd6 {[%clk 0:00:05]}  Rd4+ {[%clk 0:00:13]} 44. Ke5 {[%clk 0:00:05]}  Rd1 {[%clk 0:00:13]} 45. Rf4 {[%clk 0:00:06]}  Re1+ {[%clk 0:00:10]} 46. Kd6 {[%clk 0:00:06]}  Rd1+ {[%clk 0:00:10]} 47. Ke7 {[%clk 0:00:07]}  Re1 {[%clk 0:00:09]} 48. Kd7 {[%clk 0:00:07]}  Rd1+ {[%clk 0:00:09]} 49. Ke8 {[%clk 0:00:07]}  Rf1 {[%clk 0:00:09]} 50. e7 {[%clk 0:00:07]}  Rxf4 {[%clk 0:00:08]} 51. Kd7 {[%clk 0:00:07]}  Rd4+ {[%clk 0:00:09]} 52. Ke6 {[%clk 0:00:07]}  Re4+ {[%clk 0:00:08]} 53. Kd7 {[%clk 0:00:05]}  Kf7 {[%clk 0:00:09]} 0-1


[Site "https://www.chess.com"]

[Event "Titled Tuesday Blitz August 08 Early 2023"]
[White "Shishkov, Andrei"]
[Black "Zaksaite, Salomeja"]
[WhiteFideId "4500563"]
[BlackFideId "12801496"]
[WhiteElo "2485"]
[BlackElo "2321"]
[Result "1-0"]
[Round "8"]
[TimeControl "180+1"]
[Date "2023.08.08"]
[WhiteClock "0:01:11"]
[BlackClock "0:00:30"]
[Board "145"]

1. d4 {[%clk 0:03:00]}  Nf6 {[%clk 0:02:59]} 2. c4 {[%clk 0:03:01]}  g6 {[%clk 0:02:59]} 3. f3 {[%clk 0:03:01]}  c5 {[%clk 0:02:58]} 4. d5 {[%clk 0:03:01]}  Bg7 {[%clk 0:02:58]} 5. e4 {[%clk 0:03:01]}  d6 {[%clk 0:02:58]} 6. Ne2 {[%clk 0:03:02]}  e6 {[%clk 0:02:57]} 7. Nec3 {[%clk 0:03:02]}  exd5 {[%clk 0:02:57]} 8. cxd5 {[%clk 0:03:03]}  O-O {[%clk 0:02:55]} 9. Be2 {[%clk 0:03:03]}  a6 {[%clk 0:02:55]} 10. a4 {[%clk 0:03:03]}  Nbd7 {[%clk 0:02:34]} 11. O-O {[%clk 0:03:00]}  Re8 {[%clk 0:02:33]} 12. Na3 {[%clk 0:02:56]}  Nf8 {[%clk 0:02:24]} 13. Nc4 {[%clk 0:02:50]}  b6 {[%clk 0:02:20]} 14. Bf4 {[%clk 0:02:43]}  Nh5 {[%clk 0:01:51]} 15. Bxd6 {[%clk 0:02:22]}  Bd4+ {[%clk 0:01:50]} 16. Kh1 {[%clk 0:02:22]}  Bb7 {[%clk 0:01:44]} 17. f4 {[%clk 0:02:16]}  Nf6 {[%clk 0:01:04]} 18. Bf3 {[%clk 0:02:14]}  Bxc3 {[%clk 0:01:00]} 19. bxc3 {[%clk 0:02:02]}  b5 {[%clk 0:00:56]} 20. Bxf8 {[%clk 0:01:50]}  Kxf8 {[%clk 0:00:54]} 21. Ne5 {[%clk 0:01:33]}  c4 {[%clk 0:00:48]} 22. Qd4 {[%clk 0:01:29]}  Nd7 {[%clk 0:00:42]} 23. Nc6 {[%clk 0:01:16]}  Qb6 {[%clk 0:00:30]} 24. Qh8# {[%clk 0:01:11]} 1-0


[Site "https://www.chess.com"]

[Event "Titled Tuesday Blitz August 08 Early 2023"]
[White "Doluhanova, Evgeniya"]
[Black "Vovk, Orest"]
[WhiteFideId "14112035"]
[BlackFideId "14113490"]
[WhiteElo "2313"]
[BlackElo "2483"]
[Result "1-0"]
[Round "8"]
[TimeControl "180+1"]
[Date "2023.08.08"]
[WhiteClock "0:00:05"]
[BlackClock "0:00:02"]
[Board "146"]

1. e4 {[%clk 0:03:00]}  g5 {[%clk 0:02:55]} 2. d4 {[%clk 0:02:58]}  g4 {[%clk 0:02:54]} 3. h3 {[%clk 0:02:58]}  d5 {[%clk 0:02:50]} 4. exd5 {[%clk 0:02:54]}  Qxd5 {[%clk 0:02:45]} 5. hxg4 {[%clk 0:02:54]}  Bg7 {[%clk 0:02:42]} 6. Be3 {[%clk 0:02:50]}  Nc6 {[%clk 0:02:37]} 7. c3 {[%clk 0:02:45]}  e5 {[%clk 0:02:20]} 8. Na3 {[%clk 0:01:45]}  exd4 {[%clk 0:02:13]} 9. Nb5 {[%clk 0:01:42]}  Kd8 {[%clk 0:01:41]} 10. Nxd4 {[%clk 0:01:12]}  Nxd4 {[%clk 0:01:38]} 11. cxd4 {[%clk 0:01:12]}  Nf6 {[%clk 0:01:30]} 12. Be2 {[%clk 0:01:06]}  Ne4 {[%clk 0:01:10]} 13. Nh3 {[%clk 0:00:57]}  Qa5+ {[%clk 0:01:04]} 14. Kf1 {[%clk 0:00:54]}  Re8 {[%clk 0:00:47]} 15. Nf4 {[%clk 0:00:49]}  Ng3+ {[%clk 0:00:30]} 16. fxg3 {[%clk 0:00:41]}  Rxe3 {[%clk 0:00:30]} 17. Rxh7 {[%clk 0:00:38]}  Bf8 {[%clk 0:00:27]} 18. Kf2 {[%clk 0:00:33]}  Re8 {[%clk 0:00:25]} 19. Qb3 {[%clk 0:00:18]}  Be6 {[%clk 0:00:08]} 20. Nxe6+ {[%clk 0:00:14]}  fxe6 {[%clk 0:00:07]} 21. Qc3 {[%clk 0:00:11]}  Bb4 {[%clk 0:00:04]} 22. Qf3 {[%clk 0:00:08]}  Rf8 {[%clk 0:00:02]} 23. Rf7 {[%clk 0:00:08]}  Rxf7 {[%clk 0:00:02]} 24. Qxf7 {[%clk 0:00:08]}  Bd6 {[%clk 0:00:01]} 25. Qxe6 {[%clk 0:00:06]}  c6 {[%clk 0:00:01]} 26. Rh1 {[%clk 0:00:05]}  Kc7 {[%clk 0:00:01]} 27. Rh7+ {[%clk 0:00:05]}  Kb6 {[%clk 0:00:02]} 28. Qxd6 {[%clk 0:00:05]}  Qd2 {[%clk 0:00:02]} 29. Qc5# {[%clk 0:00:05]} 1-0


[Site "https://www.chess.com"]

[Event "Titled Tuesday Blitz August 08 Early 2023"]
[White "favesaul"]
[Black "GAO"]
[WhiteElo "2466"]
[BlackElo "2289"]
[Result "1-0"]
[Round "8"]
[TimeControl "180+1"]
[Date "2023.08.08"]
[WhiteClock "0:00:17"]
[BlackClock "0:00:44"]
[Board "151"]

1. e4 {[%clk 0:03:00]}  c6 {[%clk 0:02:58]} 2. d4 {[%clk 0:03:00]}  d5 {[%clk 0:02:58]} 3. e5 {[%clk 0:03:01]}  Bf5 {[%clk 0:02:58]} 4. Bd3 {[%clk 0:03:01]}  Bxd3 {[%clk 0:02:58]} 5. Qxd3 {[%clk 0:03:02]}  e6 {[%clk 0:02:58]} 6. h4 {[%clk 0:02:59]}  c5 {[%clk 0:02:56]} 7. dxc5 {[%clk 0:02:48]}  Bxc5 {[%clk 0:02:48]} 8. h5 {[%clk 0:02:41]}  Qb6 {[%clk 0:02:47]} 9. Qg3 {[%clk 0:02:38]}  Ne7 {[%clk 0:02:40]} 10. h6 {[%clk 0:02:21]}  Nf5 {[%clk 0:02:31]} 11. hxg7 {[%clk 0:02:20]}  Rg8 {[%clk 0:02:32]} 12. Qf4 {[%clk 0:02:17]}  Rxg7 {[%clk 0:02:22]} 13. g4 {[%clk 0:02:14]}  Nd4 {[%clk 0:02:19]} 14. Kd1 {[%clk 0:02:05]}  Nd7 {[%clk 0:02:12]} 15. c3 {[%clk 0:02:01]}  Nc6 {[%clk 0:02:12]} 16. Nf3 {[%clk 0:01:40]}  O-O-O {[%clk 0:02:10]} 17. b4 {[%clk 0:01:27]}  Be7 {[%clk 0:02:00]} 18. a4 {[%clk 0:01:25]}  Qxf2 {[%clk 0:01:56]} 19. Nbd2 {[%clk 0:01:16]}  d4 {[%clk 0:01:54]} 20. cxd4 {[%clk 0:01:09]}  Bg5 {[%clk 0:01:33]} 21. Qe4 {[%clk 0:00:53]}  Nxb4 {[%clk 0:01:30]} 22. Rf1 {[%clk 0:00:48]}  Qg2 {[%clk 0:01:25]} 23. Nxg5 {[%clk 0:00:45]}  Qg3 {[%clk 0:01:00]} 24. Nxf7 {[%clk 0:00:27]}  Nd5 {[%clk 0:00:54]} 25. Nd6+ {[%clk 0:00:26]}  Kb8 {[%clk 0:00:54]} 26. Rf3 {[%clk 0:00:17]}  Nc3+ {[%clk 0:00:43]} 27. Rxc3 {[%clk 0:00:17]}  Qxc3 {[%clk 0:00:44]} 28. Qxb7# {[%clk 0:00:17]} 1-0


[Site "https://www.chess.com"]